{"text_format":"3","workbook":"xlsx","n_sheets":2,"sheets":["Контрольный список ребенка 1","Экстренная информация"],"not_rendered":{"images":2,"defined_names":3},"read":"whole","date_system":"1900"}

{"sheet":"Контрольный список ребенка 1","index":0,"n_rows":38,"n_cols":13,"rows_kept":38,"merged":[[1,1,2,6],[4,2,4,6],[4,7,4,11],[30,1,30,12]]}
[]
[null,"Контрольный список для няни",{"$nulls":9},"ИМЯ РЕБЕНКА:","НИКОЛАЙ"]
[{"$nulls":11},"ВРЕМЯ НАЧАЛА ЗАПОЛНЕНИЯ КОНТРОЛЬНОГО СПИСКА:","07:00:00"]
[{"$nulls":11},"ИНТЕРВАЛ (В МИН)",60]
[null,"ГРАФИК","ПРИЕМ ПИЩИ И ЛИЧНАЯ ГИГИЕНА",{"$nulls":4},"РАЗВЛЕЧЕНИЯ И ОТДЫХ (УКАЖИТЕ МИНУТЫ)",{"$nulls":4},"ПРОЧЕЕ"]
[null,"Время","Прием пищи","Бутылочка или напиток","Чистка зубов","Смена подгузников","Ванна","На улице","В помещении","Книги","ТВ","Сон","Примечания"]
[null,{"$f":"Время_начала","v":"07:00:00"}]
[null,{"$f":"B7+TIME(0,Интервал,0)","v":"08:00:00"}]
[null,{"$f":"B8+TIME(0,Интервал,0)","v":"09:00:00"}]
[null,"10:00:00"]
[null,"11:00:00"]
[null,"12:00:00"]
[null,"13:00:00"]
[null,"14:00:00"]
[null,"15:00:00"]
[null,"16:00:00"]
[null,"17:00:00"]
[null,"18:00:00"]
[null,"19:00:00"]
[null,"20:00:00"]
[null,"21:00:00"]
[null,"22:00:00"]
[null,"23:00:00"]
[null,0.9999999999999997]
[null,1.0416666666666663]
[null,1.083333333333333]
[null,1.1249999999999998]
[null,1.1666666666666665]
[null,1.2083333333333333]
[null,1.25]
[]
[null,{"$f":"\"СПЕЦИАЛЬНЫЕ ИНСТРУКЦИИ ДЛЯ: \"&Имя_ребенка","v":"СПЕЦИАЛЬНЫЕ ИНСТРУКЦИИ ДЛЯ: НИКОЛАЙ"}]
[null,{"$f":"\"Что и когда \"& PROPER(Имя_ребенка)& \" может есть:\"","v":"Что и когда Николай может есть:"}]
[null,{"$f":"\"Чего \"& PROPER(Имя_ребенка)& \" не может есть:\"","v":"Чего Николай не может есть:"}]
[null,"Разрешенные ТВ-программы/видеоигры:"]
[null,{"$f":"\"Время, когда \"& PROPER(Имя_ребенка)& \" ложится спать:\"","v":"Время, когда Николай ложится спать:"}]
[null,{"$f":"\"Что \"&PROPER(Имя_ребенка)&\" не может делать:\"","v":"Что Николай не может делать:"}]
[null,{"$f":"\"Если  \"&PROPER(Имя_ребенка)&\" ведет себя плохо:\"","v":"Если  Николай ведет себя плохо:"}]

{"sheet":"Экстренная информация","index":1,"n_rows":31,"n_cols":5,"rows_kept":31,"merged":[[14,1,14,3],[15,1,15,3],[25,1,25,3],[31,1,31,3]]}
[{"$nulls":4}," "]
[null,"Экстренная информация"]
[null,"КОНТАКТНАЯ ИНФОРМАЦИЯ"]
[null,"Мое расположение и телефон:","Дом Дарьи Попковой, телефон: 123-45-67"]
[null,"Время моего возвращения домой:","19:00:00"]
[null,"Альтернативное лицо для связи и телефон:","Григорий Верный (дедушка), телефон: 456-78-90"]
[null,"Адрес для экстренной связи:","просп. Северный, 123"]
[null,"Ближайший крупный перекресток:","ул. Московская и просп. Княжеский"]
[null,"Контактные данные и телефон соседей","Светлана Омельченко, телефон: 234-56-78"]
[]
[null,"БЛАНК РАЗРЕШЕНИЯ СРОЧНОЙ МЕДИЦИНСКОЙ ПОМОЩИ"]
[null,"ИМЯ РЕБЕНКА","ДАТА РОЖДЕНИЯ","ИЗВЕСТНЫЕ ЗАБОЛЕВАНИЯ, МЕДИЦИНСКИЕ/ПИЩЕВЫЕ АЛЛЕРГИИ, ЛЕКАРСТВА (НАЗНАЧЕННЫЕ И БЕЗ РЕЦЕПТА) И Т. Д.:"]
[null,"Николай Новиков","2001-03-30","Нет"]
[null,"Юлия Ильина","1997-03-28","Аллергия на пенициллин"]
[]
[null,"Любой врач, стоматолог или клиника с лицензией могут предоставлять необходимую срочную медицинскую помощь моим детям, указанным выше по"]
[null,"просьбе человека, предоставившего этот бланк согласия."]
[]
[null,"Дата",null,"Подпись родителя или законного опекуна"]
[]
[null,"МЕДИЦИНСКАЯ ИНФОРМАЦИЯ"]
[null,"ИМЯ ВРАЧА/СФЕРА УСЛУГ","ТЕЛЕФОН","АДРЕС"]
[null,"Стоматолог: Шашков Р.","400-567-89-01","просп. Невский, 12"]
[null,"Врач: Ожогина И.","400-012-34-56","ул. Киевская, 123"]
[null,"Ортодонт: Туманов А.","400-890-12-34","пер. Княжеский, 12"]
[]
[null,"ИНФОРМАЦИЯ О СТРАХОВКЕ"]
[null,"ПРЕДОСТАВЛЯЕМЫЕ УСЛУГИ","№ ПОЛИСА","ИМЯ В СТРАХОВКЕ"]
[null,"Медицинский","987687-88776","Алексей Орехов"]
[null,"Стоматология","09877UT9U","Алексей Орехов"]
[null,"Прописанные лекарства","7658007 99","Алексей Орехов"]